[Event "IM Marmaris Karia V 2019"]
[Site "Marmaris"]
[Date "2019.03.10"]
[Round "5.1"]
[White "Tanriverdi, Enes"]
[Black "Dimitrijevic, Aleksandra"]
[Result "1-0"]
[ECO "A53"]
[WhiteElo "2310"]
[BlackElo "2139"]
[Annotator "NA"]
[PlyCount "77"]
[EventDate "2019.03.09"]
[EventType "schev"]
[EventCountry "TUR"]
[SourceTitle "playchess.com"]
[Source "ChessBase"]
[SourceQuality "1"]
[TimeControl "5400+30"]

1. d4 {[%emt 0:00:30]} d6 {[%emt 0:01:30]} 2. Nf3 {[%emt 0:01:30]} Nf6 {[%emt 0:00:30]} 3. c4 {[%emt 0:00:00]} c6 {[%emt 0:02:30]} 4. Nc3 {[%emt 0:00:00]} Bf5 {[%emt 0:00:30]} 5. g3 {[%emt 0:00:30]} h6 {[%emt 0:00:30]} 6. Bg2 {[%emt 0:00:30]} Nbd7 {[%emt 0:00:30]} 7. O-O {[%emt 0:00:30]} e5 {[%emt 0:00:30]} 8. Nh4 {[%emt 0:02:30]} Bh7 {[%emt 0:03:30]} 9. e4 {[%emt 0:00:30]} Be7 {[%emt 0:03:30]} 10. Nf5 {[%emt 0:00:00]} Bxf5 {[%emt 0:00:30]} 11. exf5 {[%emt 0:00:00]} Qc7 {[%emt 0:02:30]} 12. d5 {[%emt 0:00:30]} c5 {[%emt 0:00:30]} 13. Re1 {[%emt 0:00:30]} a6 {[%emt 0:00:30]} 14. a4 {[%emt 0:01:30]} b6 {[%emt 0:01:30]} 15. b3 {[%emt 0:01:30]} O-O {[%emt 0:00:30]} 16. Qf3 {[%emt 0:00:30]} Rfe8 {[%emt 0:01:30]} 17. Bd2 {[%emt 0:03:30]} Nh7 {[%emt 0:02:30]} 18. h4 {[%emt 0:02:30]} a5 {[%emt 0:00:30]} 19. Bf1 {[%emt 0:02:30]} Bf6 {[%emt 0:01:30]} 20. Ne4 {[%emt 0:00:30]} Be7 {[%emt 0:04:30]} 21. Bd3 {[%emt 0:00:30]} Ndf6 {[%emt 0:00:30]} 22. Nc3 {[%emt 0:00:30]} Nd7 {[%emt 0:00:30]} 23. Kg2 {[%emt 0:00:30]} Bf6 {[%emt 0:00:30]} 24. Ne4 {[%emt 0:00:30]} Kf8 {[%emt 0:00:30]} 25. Rh1 {[%emt 0:00:30]} Ke7 {[%emt 0:00:00]} 26. g4 {[%emt 0:00:30]} Kd8 {[%emt 0:00:00]} 27. g5 {[%emt 0:00:30]} Be7 {[%emt 0:00:30]} 28. f6 {[%emt 0:00:30]} gxf6 {[%emt 0:00:30]} 29. gxh6 {[%emt 0:00:30]} Kc8 {[%emt 0:01:30]} 30. Qf5 {[%emt 0:00:30]} Rh8 {[%emt 0:00:30]} 31. Kf3 {[%emt 0:00:00]} Qd8 {[%emt 0:01:30]} 32. Rag1 {[%emt 0:00:00]} Kc7 {[%emt 0:00:30]} 33. Rg7 {[%emt 0:00:30]} Nhf8 {[%emt 0:00:30]} 34. h5 {[%emt 0:00:30]} Qe8 {[%emt 0:00:30]} 35. Rhg1 {[%emt 0:00:30]} Rd8 {[%emt 0:00:30]} 36. Ke2 {[%emt 0:00:30]} Kb8 {[%emt 0:00:30]} 37. Be3 {[%emt 0:00:30]} Kc7 {[%emt 0:00:30]} 38. Rg8 {[%emt 0:00:30]} Rh7 {[%emt 0:00:30]} 39. R1g7 1-0